[Event "DVM U12 2019"]
[Site "Magedburg"]
[Date "2019.12.29"]
[Round "5"]
[White "Fuhrmann, Bahne"]
[Black "von Mettenheim, Johannes"]
[Result "0-1"]
[ECO "B12"]
[WhiteElo "1603"]
[BlackElo "1971"]
[Annotator "NA"]
[PlyCount "43"]
[EventDate "2019.12.27"]
[EventType "team-tourn"]
[EventRounds "7"]
[EventCountry "GER"]
[SourceTitle "playchess.com"]
[Source "ChessBase"]
[SourceQuality "1"]
[WhiteTeam "Hamburger SK"]
[BlackTeam "Schachzentrum Bemerode"]
[WhiteTeamCountry "GER"]
[BlackTeamCountry "GER"]
[TimeControl "40/5400+30:1800+30"]

1. e4 {[%emt 0:00:00]} c6 {[%emt 0:00:00]} 2. d4 {[%emt 0:00:00]} d5 {[%emt 0:00:00]} 3. e5 {[%emt 0:00:00]} c5 {[%emt 0:00:00]} 4. dxc5 {[%emt 0:00:00]} Nc6 {[%emt 0:00:00]} 5. a3 {[%emt 0:00:00]} Nxe5 {[%emt 0:00:56]} 6. b4 {[%emt 0:00:12]} Nf6 {[%emt 0:00:27]} 7. Bb2 {[%emt 0:00:27]} Ned7 {[%emt 0:01:27]} 8. c4 {[%emt 0:04:38]} dxc4 {[%emt 0:04:18]} 9. Bxc4 {[%emt 0:01:27]} Qc7 {[%emt 0:00:17]} 10. Nf3 {[%emt 0:03:01]} b6 {[%emt 0:02:36]} 11. Qb3 {[%emt 0:03:58]} e6 {[%emt 0:00:11]} 12. Bxe6 {[%emt 0:02:08]} fxe6 {[%emt 0:00:13]} 13. Qxe6+ {[%emt 0:00:05]} Be7 {[%emt 0:01:24]} 14. Ng5 {[%emt 0:11:55]} Rf8 {[%emt 0:03:46]} 15. Qe2 {[%emt 0:07:18]} Qc6 {[%emt 0:06:15]} 16. O-O {[%emt 0:09:29]} Bb7 {[%emt 0:04:12]} 17. f3 {[%emt 0:02:35]} Nxc5 {[%emt 0:18:25]} 18. Re1 {[%emt 0:03:44]} O-O-O {[%emt 0:00:24]} 19. bxc5 {[%emt 0:02:42]} Qxc5+ {[%emt 0:00:29]} 20. Kf1 {[%emt 0:02:31]} Qxg5 {[%emt 0:00:43]} 21. Qxe7 {[%emt 0:01:55]} Ba6+ {[%emt 0:04:30] normal} 22. Kf2 {[%emt 0:04:01] normal} 0-1

[Event "DVM U12 2019"]
[Site "Magedburg"]
[Date "2019.12.29"]
[Round "5"]
[White "Rehbein, Vitus"]
[Black "Krüger, Arthur"]
[Result "1/2-1/2"]
[ECO "C11"]
[WhiteElo "1547"]
[BlackElo "1693"]
[Annotator "NA"]
[PlyCount "54"]
[EventDate "2019.12.27"]
[EventType "team-tourn"]
[EventRounds "7"]
[EventCountry "GER"]
[SourceTitle "playchess.com"]
[Source "ChessBase"]
[SourceQuality "1"]
[WhiteTeam "Schachzentrum Bemerode"]
[BlackTeam "Hamburger SK"]
[WhiteTeamCountry "GER"]
[TimeControl "40/5400+30:1800+30"]

1. e4 {[%emt 0:00:00]} e6 {[%emt 0:00:00]} 2. d4 {[%emt 0:00:00]} d5 {[%emt 0:00:00]} 3. Nc3 {[%emt 0:00:00]} Nf6 {[%emt 0:00:00]} 4. e5 {[%emt 0:02:18]} Nfd7 {[%emt 0:00:11]} 5. Be3 {[%emt 0:17:23]} a6 {[%emt 0:02:50]} 6. Qg4 {[%emt 0:05:42]} h5 {[%emt 0:05:01]} 7. Qg3 {[%emt 0:08:03]} h4 {[%emt 0:09:47]} 8. Qg4 {[%emt 0:01:46]} g6 {[%emt 0:10:48]} 9. Bd3 {[%emt 0:02:50]} Rg8 {[%emt 0:02:19]} 10. Nf3 {[%emt 0:03:59]} Be7 {[%emt 0:17:14]} 11. Ng5 Nf8 {[%emt 0:04:07]} 12. Qxh4 {[%emt 0:20:17]} c5 {[%emt 0:04:24]} 13. f4 {[%emt 0:18:49]} Qb6 {[%emt 0:04:00]} 14. dxc5 {[%emt 0:03:10]} Qxb2 {[%emt 0:01:03]} 15. Kd2 {[%emt 0:00:16]} Qa3 {[%emt 0:05:20]} 16. Rab1 {[%emt 0:01:23]} Bxc5 {[%emt 0:01:26]} 17. Bxc5 {[%emt 0:00:21]} Qxc5 {[%emt 0:00:07]} 18. Nh7 {[%emt 0:00:39]} Nbd7 {[%emt 0:02:58]} 19. Nxf8 {[%emt 0:02:02]} Nxf8 {[%emt 0:01:12]} 20. Rhf1 {[%emt 0:00:27]} b6 {[%emt 0:04:27]} 21. Qf2 {[%emt 0:00:16]} Qxf2+ {[%emt 0:01:34]} 22. Rxf2 {[%emt 0:00:04]} Nd7 {[%emt 0:01:46]} 23. Ne2 {[%emt 0:00:44]} Rh8 {[%emt 0:01:15]} 24. g3 {[%emt 0:00:04]} b5 {[%emt 0:01:43]} 25. c3 {[%emt 0:00:48]} Nc5 {[%emt 0:00:57]} 26. Nd4 {[%emt 0:00:48]} Bb7 {[%emt 0:03:32]} 27. Rd1 {[%emt 0:01:18]} Ke7 {[%emt 0:02:52] normal} 1/2-1/2

[Event "DVM U12 2019"]
[Site "Magedburg"]
[Date "2019.12.29"]
[Round "5"]
[White "Malchereck, Zion"]
[Black "Struebel, Tobias"]
[Result "1-0"]
[ECO "C01"]
[WhiteElo "1543"]
[BlackElo "1379"]
[Annotator "NA"]
[PlyCount "111"]
[EventDate "2019.12.27"]
[EventType "team-tourn"]
[EventRounds "7"]
[EventCountry "GER"]
[SourceTitle "playchess.com"]
[Source "ChessBase"]
[SourceQuality "1"]
[WhiteTeam "Hamburger SK"]
[BlackTeam "Schachzentrum Bemerode"]
[WhiteTeamCountry "GER"]
[BlackTeamCountry "GER"]
[TimeControl "40/5400+30:1800+30"]

1. e4 {[%emt 0:00:00]} e6 {[%emt 0:00:00]} 2. d4 {[%emt 0:00:00]} d5 {[%emt 0:00:00]} 3. exd5 {[%emt 0:00:00]} exd5 {[%emt 0:00:00]} 4. Nf3 {[%emt 0:00:09]} Nf6 {[%emt 0:00:29]} 5. Bd3 {[%emt 0:00:32]} Bg4 {[%emt 0:00:39]} 6. Be3 {[%emt 0:00:53]} Nc6 {[%emt 0:00:27]} 7. c3 {[%emt 0:00:13]} Be7 {[%emt 0:01:03]} 8. Nbd2 {[%emt 0:00:38]} O-O {[%emt 0:02:27]} 9. h3 {[%emt 0:01:20]} Bh5 {[%emt 0:01:16]} 10. O-O {[%emt 0:00:18]} Qd7 {[%emt 0:02:11]} 11. Qc2 {[%emt 0:03:25]} Bg6 {[%emt 0:01:40]} 12. Bxg6 {[%emt 0:00:30]} fxg6 {[%emt 0:00:32]} 13. Rfe1 {[%emt 0:00:49]} Rae8 {[%emt 0:04:30]} 14. Bf4 {[%emt 0:03:16]} Nh5 {[%emt 0:03:04]} 15. Be5 {[%emt 0:00:45]} Bf6 {[%emt 0:02:46]} 16. Bxf6 {[%emt 0:00:23]} Rxe1+ {[%emt 0:00:13]} 17. Rxe1 {[%emt 0:00:13]} gxf6 {[%emt 0:00:25]} 18. Nb3 {[%emt 0:00:35]} b6 {[%emt 0:00:17]} 19. c4 {[%emt 0:01:10]} Nb4 {[%emt 0:02:15]} 20. Qd2 {[%emt 0:03:51]} dxc4 {[%emt 0:02:35]} 21. Qxb4 {[%emt 0:00:16]} cxb3 {[%emt 0:00:07]} 22. Qxb3+ {[%emt 0:00:12]} Qf7 {[%emt 0:03:39]} 23. Qa3 {[%emt 0:00:43]} a5 {[%emt 0:03:38]} 24. Re7 {[%emt 0:00:08]} Qc4 {[%emt 0:01:05]} 25. Qc3 {[%emt 0:01:36]} Qxa2 {[%emt 0:03:00]} 26. Qxc7 {[%emt 0:00:14]} Qxb2 {[%emt 0:09:35]} 27. g4 {[%emt 0:06:00]} Qb1+ {[%emt 0:01:34]} 28. Kg2 {[%emt 0:00:32]} Nf4+ {[%emt 0:01:01]} 29. Qxf4 {[%emt 0:00:14]} a4 {[%emt 0:00:21]} 30. Qc7 {[%emt 0:00:29]} g5 {[%emt 0:00:20]} 31. Qc4+ {[%emt 0:00:48]} Kh8 {[%emt 0:00:44]} 32. Qxa4 {[%emt 0:00:24]} b5 {[%emt 0:00:27]} 33. Rb7 {[%emt 0:02:26]} Qe4 {[%emt 0:04:35]} 34. Qxb5 {[%emt 0:01:26]} h5 {[%emt 0:02:06]} 35. Qd7 {[%emt 0:00:39]} Qg6 {[%emt 0:00:55]} 36. Qf5 {[%emt 0:02:06]} Qh6 {[%emt 0:00:25]} 37. d5 {[%emt 0:01:01]} hxg4 {[%emt 0:00:56]} 38. hxg4 {[%emt 0:00:38]} Ra8 {[%emt 0:00:57]} 39. Rf7 {[%emt 0:00:37]} Rd8 {[%emt 0:04:54]} 40. Qxf6+ {[%emt 0:00:24]} Qxf6 {[%emt 0:00:13]} 41. Rxf6 {[%emt 0:30:17]} Rxd5 {[%emt 0:30:17]} 42. Rg6 {[%emt 0:00:12]} Rc5 {[%emt 0:01:05]} 43. Rxg5 {[%emt 0:00:14]} Rc4 {[%emt 0:00:11]} 44. Kg3 {[%emt 0:00:13]} Kh7 {[%emt 0:00:09]} 45. Re5 {[%emt 0:01:25]} Kg6 {[%emt 0:00:16]} 46. Nh4+ {[%emt 0:00:53]} Kf6 {[%emt 0:00:11]} 47. f4 {[%emt 0:00:16]} Rc3+ {[%emt 0:00:08]} 48. Nf3 {[%emt 0:00:08]} Rc1 {[%emt 0:00:30]} 49. f5 {[%emt 0:00:47]} Rc3 {[%emt 0:00:13]} 50. Re6+ {[%emt 0:00:27]} Kf7 {[%emt 0:00:14]} 51. Kf4 {[%emt 0:00:23]} Rc8 {[%emt 0:00:21]} 52. Ne5+ {[%emt 0:00:58]} Kg7 {[%emt 0:00:21]} 53. Kg5 {[%emt 0:00:51]} Kg8 {[%emt 0:00:34]} 54. Nd7 {[%emt 0:00:46]} Rd8 {[%emt 0:00:30]} 55. Rg6+ {[%emt 0:00:24] normal} Kh8 {[%emt 0:00:49]} 56. Nf6 {normal} 1-0

[Event "DVM U12 2019"]
[Site "Magedburg"]
[Date "2019.12.29"]
[Round "5"]
[White "Freude, Paul"]
[Black "Butusov, Maxim"]
[Result "1-0"]
[ECO "C55"]
[WhiteElo "1491"]
[BlackElo "1222"]
[Annotator "NA"]
[PlyCount "36"]
[EventDate "2019.12.27"]
[EventType "team-tourn"]
[EventRounds "7"]
[EventCountry "GER"]
[SourceTitle "playchess.com"]
[Source "ChessBase"]
[SourceQuality "1"]
[WhiteTeam "SV Empor Berlin"]
[BlackTeam "SF Brackel"]
[WhiteTeamCountry "GER"]
[TimeControl "40/5400+30:1800+30"]

1. e4 {[%emt 0:00:00]} e5 {[%emt 0:00:00]} 2. Nf3 {[%emt 0:00:00]} Nc6 {[%emt 0:00:00]} 3. d4 {[%emt 0:00:00]} exd4 {[%emt 0:00:00]} 4. Bc4 {[%emt 0:00:00]} Nf6 {[%emt 0:00:33]} 5. O-O {[%emt 0:00:07]} Bc5 {[%emt 0:01:13]} 6. e5 {[%emt 0:04:09]} d5 {[%emt 0:00:05]} 7. Bb5 {[%emt 0:00:12]} a6 {[%emt 0:01:56]} 8. Bxc6+ {[%emt 0:00:37]} bxc6 {[%emt 0:00:16]} 9. exf6 {[%emt 0:00:18]} Qxf6 {[%emt 0:01:18]} 10. Re1+ {[%emt 0:01:24]} Be6 {[%emt 0:00:10]} 11. a3 {[%emt 0:03:02]} O-O {[%emt 0:00:22]} 12. Nbd2 {[%emt 0:00:48]} Bg4 {[%emt 0:00:24]} 13. Rb1 {[%emt 0:03:09]} Bxf3 {[%emt 0:00:37]} 14. Nxf3 {[%emt 0:00:51]} Rab8 {[%emt 0:00:15]} 15. b4 {[%emt 0:00:55]} Ba7 {[%emt 0:00:05]} 16. Bb2 {[%emt 0:01:11]} c5 {[%emt 0:01:27]} 17. bxc5 {[%emt 0:02:11]} Bxc5 {[%emt 0:00:08] normal} 18. Qd3 {[%emt 0:04:46] normal} Qb6 {[%emt 0:00:44] normal} 1-0

[Event "DVM U12 2019"]
[Site "Magedburg"]
[Date "2019.12.29"]
[Round "5"]
[White "Richter, Nicholas"]
[Black "Makarov, Mark Alexander"]
[Result "1-0"]
[ECO "D31"]
[WhiteElo "1448"]
[BlackElo "1243"]
[Annotator "NA"]
[PlyCount "105"]
[EventDate "2019.12.27"]
[EventType "team-tourn"]
[EventRounds "7"]
[EventCountry "GER"]
[SourceTitle "playchess.com"]
[Source "ChessBase"]
[SourceQuality "1"]
[WhiteTeam "USV TU Dresden"]
[BlackTeam "SV Multatuli Ingelheim"]
[WhiteTeamCountry "GER"]
[TimeControl "40/5400+30:1800+30"]

1. d4 {[%emt 0:00:00]} d5 {[%emt 0:00:00]} 2. c4 {[%emt 0:00:23]} e6 {[%emt 0:02:27]} 3. Nc3 {[%emt 0:02:06]} Bb4 {[%emt 0:02:44]} 4. e3 {[%emt 0:02:43]} Nf6 {[%emt 0:01:04]} 5. Nge2 {[%emt 0:02:21]} Ne4 {[%emt 0:02:22]} 6. Qc2 {[%emt 0:02:56]} Nxc3 {[%emt 0:04:36]} 7. Nxc3 {[%emt 0:02:49]} O-O {[%emt 0:02:47]} 8. Bd3 {[%emt 0:03:03]} Re8 {[%emt 0:03:45]} 9. Bxh7+ {[%emt 0:01:59]} Kh8 {[%emt 0:00:16]} 10. Bd3 {[%emt 0:00:40]} c5 {[%emt 0:01:23]} 11. dxc5 {[%emt 0:03:13]} dxc4 {[%emt 0:00:47]} 12. Bxc4 {[%emt 0:01:19]} Bxc5 {[%emt 0:00:09]} 13. O-O {[%emt 0:01:12]} Bd6 {[%emt 0:01:22]} 14. Bb5 {[%emt 0:12:17]} Rf8 {[%emt 0:04:57]} 15. Rd1 {[%emt 0:02:17]} a6 {[%emt 0:01:33]} 16. Be2 {[%emt 0:00:49]} g6 {[%emt 0:01:13]} 17. Ne4 {[%emt 0:01:02]} Qc7 {[%emt 0:02:03]} 18. Qxc7 {[%emt 0:03:51]} Bxc7 {[%emt 0:00:18]} 19. b3 {[%emt 0:00:37]} Be5 {[%emt 0:01:42]} 20. Rb1 {[%emt 0:00:11]} b5 {[%emt 0:11:08]} 21. Bb2 {[%emt 0:00:54]} Bxb2 {[%emt 0:00:09]} 22. Rxb2 {[%emt 0:00:04]} Bb7 {[%emt 0:01:02]} 23. Bf3 {[%emt 0:00:41]} f5 {[%emt 0:01:30]} 24. Ng5 {[%emt 0:00:35]} Bxf3 {[%emt 0:01:15]} 25. Nxf3 {[%emt 0:00:19]} Nc6 {[%emt 0:03:06]} 26. g3 {[%emt 0:00:27]} e5 {[%emt 0:01:35]} 27. Rd6 {[%emt 0:00:33]} e4 {[%emt 0:02:19]} 28. Nh4 {[%emt 0:00:30]} Ne7 {[%emt 0:01:16]} 29. Re6 {[%emt 0:00:02]} g5 {[%emt 0:03:05]} 30. Ng6+ {[%emt 0:01:13]} Nxg6 {[%emt 0:00:14]} 31. Rxg6 {[%emt 0:00:01]} Rg8 {[%emt 0:01:48]} 32. Rxg8+ {[%emt 0:00:20]} Rxg8 {[%emt 0:00:49]} 33. Rd2 {[%emt 0:00:14]} g4 {[%emt 0:00:54]} 34. Rd6 {[%emt 0:00:30]} Ra8 {[%emt 0:00:30]} 35. Rf6 {[%emt 0:00:30]} Rd8 {[%emt 0:00:30]} 36. Rxf5 {[%emt 0:00:03]} Rd1+ {[%emt 0:01:19]} 37. Kg2 {[%emt 0:00:05]} Ra1 {[%emt 0:00:54]} 38. a4 {[%emt 0:02:35]} bxa4 {[%emt 0:00:12]} 39. Ra5 {[%emt 0:03:02]} a3 {[%emt 0:01:46]} 40. Rxa6 {[%emt 0:00:09]} a2 {[%emt 0:00:27]} 41. b4 {[%emt 0:30:06]} Kg7 {[%emt 0:32:53]} 42. b5 {[%emt 0:00:18]} Rb1 {[%emt 0:04:00]} 43. Rxa2 {[%emt 0:00:13]} Rxb5 {[%emt 0:00:14]} 44. Ra4 {[%emt 0:00:05]} Kf6 {[%emt 0:02:22]} 45. Rxe4 {[%emt 0:00:07]} Kf5 {[%emt 0:00:46]} 46. Rf4+ {[%emt 0:00:59]} Kg5 {[%emt 0:00:39]} 47. h3 {[%emt 0:00:17]} gxh3+ {[%emt 0:01:58]} 48. Kxh3 {[%emt 0:00:01]} Kh6 {[%emt 0:02:39]} 49. Kg4 {[%emt 0:00:18]} Rg5+ {[%emt 0:00:44]} 50. Kf3 {[%emt 0:00:06]} Kh7 {[%emt 0:01:12]} 51. e4 {[%emt 0:00:10]} Kg7 {[%emt 0:01:14]} 52. Rf5 {[%emt 0:00:07]} Kh6 {[%emt 0:01:30]} 53. Rxg5 {[%emt 0:00:06] normal} 1-0

[Event "DVM U12 2019"]
[Site "Magedburg"]
[Date "2019.12.29"]
[Round "5"]
[White "Bangiev, Anton"]
[Black "Tietz, Bennit"]
[Result "0-1"]
[ECO "C47"]
[WhiteElo "1431"]
[BlackElo "1637"]
[Annotator "NA"]
[PlyCount "52"]
[EventDate "2019.12.27"]
[EventType "team-tourn"]
[EventRounds "7"]
[EventCountry "GER"]
[SourceTitle "playchess.com"]
[Source "ChessBase"]
[SourceQuality "1"]
[WhiteTeam "Schachzentrum Bemerode"]
[BlackTeam "Hamburger SK"]
[WhiteTeamCountry "GER"]
[BlackTeamCountry "GER"]
[TimeControl "40/5400+30:1800+30"]

1. e4 {[%emt 0:00:00]} e5 {[%emt 0:00:00]} 2. Nf3 {[%emt 0:00:00]} Nc6 {[%emt 0:00:00]} 3. Nc3 {[%emt 0:00:00]} Nf6 {[%emt 0:00:00]} 4. g3 {[%emt 0:00:00]} Bc5 {[%emt 0:00:10]} 5. Bg2 {[%emt 0:00:00]} d6 {[%emt 0:00:32]} 6. O-O {[%emt 0:00:44]} a6 {[%emt 0:00:14]} 7. d3 {[%emt 0:02:31]} Be6 {[%emt 0:00:56]} 8. Re1 {[%emt 0:02:09]} h6 {[%emt 0:00:11]} 9. Qe2 {[%emt 0:02:15]} O-O {[%emt 0:00:34]} 10. Be3 {[%emt 0:00:33]} Qd7 {[%emt 0:03:57]} 11. Qd2 {[%emt 0:01:34]} Ng4 {[%emt 0:02:01]} 12. a3 {[%emt 0:05:21]} Nxe3 {[%emt 0:00:20]} 13. fxe3 {[%emt 0:01:13]} Bb6 {[%emt 0:02:57]} 14. d4 {[%emt 0:01:10]} Bg4 {[%emt 0:02:19]} 15. Nd5 {[%emt 0:02:43]} Ba7 {[%emt 0:01:15]} 16. c3 {[%emt 0:01:25]} Be6 {[%emt 0:02:24]} 17. dxe5 {[%emt 0:10:48]} dxe5 {[%emt 0:01:13]} 18. Rad1 {[%emt 0:00:49]} Rad8 {[%emt 0:03:29]} 19. Qe2 {[%emt 0:01:42]} Qc8 {[%emt 0:03:13]} 20. Nxe5 {[%emt 0:11:51]} Bxd5 {[%emt 0:00:45]} 21. Nxc6 {[%emt 0:00:16]} Bxc6 {[%emt 0:00:17]} 22. Rf1 {[%emt 0:00:59]} Rfe8 {[%emt 0:02:42]} 23. Rxd8 {[%emt 0:12:26]} Rxd8 {[%emt 0:01:52]} 24. Kh1 {[%emt 0:07:20]} Qe6 {[%emt 0:01:05]} 25. Qf3 {[%emt 0:00:37]} Rd2 {[%emt 0:01:06]} 26. Rb1 {[%emt 0:02:44]} Rxg2 {[%emt 0:00:08] normal} 0-1

[Event "DVM U12 2019"]
[Site "Magedburg"]
[Date "2019.12.29"]
[Round "5"]
[White "Römer, Uri"]
[Black "Spranger, Tobias"]
[Result "0-1"]
[ECO "C50"]
[WhiteElo "1311"]
[BlackElo "1390"]
[Annotator "NA"]
[PlyCount "42"]
[EventDate "2019.12.27"]
[EventType "team-tourn"]
[EventRounds "7"]
[EventCountry "GER"]
[SourceTitle "playchess.com"]
[Source "ChessBase"]
[SourceQuality "1"]
[WhiteTeam "SF Brackel"]
[BlackTeam "SV Empor Berlin"]
[BlackTeamCountry "GER"]
[TimeControl "40/5400+30:1800+30"]

1. e4 {[%emt 0:00:00]} e5 {[%emt 0:00:00]} 2. Nf3 {[%emt 0:00:00]} Nc6 {[%emt 0:00:00]} 3. Bc4 {[%emt 0:00:00]} Bc5 {[%emt 0:00:00]} 4. d3 {[%emt 0:01:28]} Nf6 {[%emt 0:00:56]} 5. Nc3 {[%emt 0:00:33]} d6 {[%emt 0:00:25]} 6. h3 {[%emt 0:00:27]} h6 {[%emt 0:00:33]} 7. Be3 {[%emt 0:00:26]} Bb6 {[%emt 0:00:23]} 8. Qd2 {[%emt 0:02:38]} Be6 {[%emt 0:00:29]} 9. Bb3 {[%emt 0:00:14]} Qd7 {[%emt 0:00:14]} 10. O-O-O {[%emt 0:07:16]} Nd4 {[%emt 0:01:14]} 11. Bxd4 {[%emt 0:02:28]} exd4 {[%emt 0:01:22]} 12. Ba4 {[%emt 0:06:27]} c6 {[%emt 0:01:09]} 13. Ne2 {[%emt 0:01:07]} O-O {[%emt 0:01:51]} 14. Nexd4 {[%emt 0:03:49]} Bxd4 {[%emt 0:00:17]} 15. Nxd4 {[%emt 0:00:39]} Bxa2 {[%emt 0:00:26]} 16. g4 {[%emt 0:09:56]} b5 {[%emt 0:00:38]} 17. Bb3 {[%emt 0:00:27]} Bxb3 {[%emt 0:00:07]} 18. Nxb3 {[%emt 0:00:15]} a5 {[%emt 0:00:09]} 19. Nxa5 {[%emt 0:01:21]} Qa7 {[%emt 0:00:45]} 20. Nb3 {[%emt 0:01:01]} Qa1+ {[%emt 0:00:38]} 21. Nxa1 {normal} Rxa1# {normal} 0-1

[Event "DVM U12 2019"]
[Site "Magedburg"]
[Date "2019.12.29"]
[Round "5"]
[White "Strauß, Florian"]
[Black "Espig, Nils"]
[Result "1/2-1/2"]
[ECO "B30"]
[WhiteElo "1303"]
[BlackElo "1596"]
[Annotator "NA"]
[PlyCount "105"]
[EventDate "2019.12.27"]
[EventType "team-tourn"]
[EventRounds "7"]
[EventCountry "GER"]
[SourceTitle "playchess.com"]
[Source "ChessBase"]
[SourceQuality "1"]
[WhiteTeam "SV Multatuli Ingelheim"]
[BlackTeam "USV TU Dresden"]
[BlackTeamCountry "GER"]
[TimeControl "40/5400+30:1800+30"]

1. e4 {[%emt 0:00:00]} c5 {[%emt 0:00:00]} 2. Nf3 {[%emt 0:00:00]} Nc6 {[%emt 0:00:00]} 3. c4 {[%emt 0:00:00]} g6 {[%emt 0:00:40]} 4. Be2 {[%emt 0:00:00]} Bg7 {[%emt 0:00:50]} 5. Nc3 {[%emt 0:00:10]} Nf6 {[%emt 0:00:41]} 6. d3 {[%emt 0:00:15]} O-O {[%emt 0:00:50]} 7. Bg5 {[%emt 0:00:09]} d6 {[%emt 0:01:54]} 8. Qd2 {[%emt 0:00:41]} Re8 {[%emt 0:01:23]} 9. O-O-O {[%emt 0:00:28]} Qa5 {[%emt 0:00:38]} 10. a3 {[%emt 0:00:40]} a6 {[%emt 0:00:32]} 11. h4 {[%emt 0:01:03]} b5 {[%emt 0:00:54]} 12. cxb5 {[%emt 0:00:19]} axb5 {[%emt 0:00:37]} 13. Nd5 {[%emt 0:00:33]} Qxd2+ {[%emt 0:02:00]} 14. Bxd2 {[%emt 0:00:11]} Nxd5 {[%emt 0:00:15]} 15. exd5 {[%emt 0:00:26]} Na5 {[%emt 0:02:07]} 16. Kc2 {[%emt 0:00:51]} Nb7 {[%emt 0:03:47]} 17. d4 {[%emt 0:02:16]} c4 {[%emt 0:02:45]} 18. Ng5 {[%emt 0:01:17]} Bxd4 {[%emt 0:01:38]} 19. f4 {[%emt 0:00:46]} Nc5 20. g4 {[%emt 0:03:32]} h5 {[%emt 0:04:01]} 21. Bb4 {[%emt 0:01:55]} Nb3 {[%emt 0:01:17]} 22. Bc3 {[%emt 0:02:18]} Bxc3 {[%emt 0:01:29]} 23. Kxc3 {[%emt 0:00:21]} hxg4 {[%emt 0:00:55]} 24. Rdg1 {[%emt 0:00:26]} f5 {[%emt 0:00:37]} 25. h5 {[%emt 0:00:25]} Kg7 {[%emt 0:22:07]} 26. h6+ {[%emt 0:00:13]} Kg8 {[%emt 0:00:45]} 27. h7+ {[%emt 0:06:12]} Kg7 {[%emt 0:00:16]} 28. Nf7 {[%emt 0:01:09]} Kxf7 {[%emt 0:01:25]} 29. h8=Q {[%emt 0:00:04]} Rxh8 {[%emt 0:00:09]} 30. Rxh8 {[%emt 0:00:10]} Bb7 {[%emt 0:00:08]} 31. Rxa8 {[%emt 0:04:56]} Bxa8 {[%emt 0:00:08]} 32. a4 {[%emt 0:02:38]} bxa4 {[%emt 0:03:39]} 33. Bxc4 {[%emt 0:01:31]} Kf6 {[%emt 0:03:04]} 34. Bxb3 {[%emt 0:00:49]} axb3 {[%emt 0:00:11]} 35. Rd1 {[%emt 0:00:12]} g5 {[%emt 0:01:09]} 36. fxg5+ {[%emt 0:00:24]} Kxg5 {[%emt 0:00:06]} 37. Kd4 {[%emt 0:01:50]} Bb7 {[%emt 0:03:26]} 38. Re1 {[%emt 0:00:28]} Bxd5 {[%emt 0:11:01]} 39. Kxd5 {[%emt 0:00:36]} e5 {[%emt 0:00:08]} 40. Kxd6 {[%emt 0:01:12]} e4 {[%emt 0:01:02]} 41. Ke5 {[%emt 0:30:13]} g3 {[%emt 0:30:26]} 42. Rf1 {[%emt 0:00:54]} Kg4 {[%emt 0:00:40]} 43. Rxf5 {[%emt 0:01:22]} g2 {[%emt 0:00:33]} 44. Rf8 {[%emt 0:00:17]} e3 {[%emt 0:00:45]} 45. Ke4 {[%emt 0:04:33]} e2 {[%emt 0:00:50]} 46. Rg8+ {[%emt 0:00:48]} Kh3 {[%emt 0:00:26]} 47. Kf3 {[%emt 0:00:52]} e1=Q {[%emt 0:05:34]} 48. Rh8+ {[%emt 0:00:13]} Qh4 {[%emt 0:00:06]} 49. Rxh4+ {[%emt 0:00:27]} Kxh4 {[%emt 0:00:06]} 50. Kxg2 {[%emt 0:00:12]} Kg4 {[%emt 0:00:07]} 51. Kf2 {[%emt 0:00:07]} Kf4 {[%emt 0:00:20]} 52. Ke2 {[%emt 0:00:17]} Ke4 {[%emt 0:00:05]} 53. Kd2 {normal} 1/2-1/2

[Event "DVM U12 2019"]
[Site "Magedburg"]
[Date "2019.12.29"]
[Round "6"]
[White "von Mettenheim, Johannes"]
[Black "Hecht, Jonas Christian"]
[Result "0-1"]
[ECO "D19"]
[WhiteElo "1971"]
[BlackElo "1754"]
[Annotator "NA"]
[PlyCount "45"]
[EventDate "2019.12.27"]
[EventType "team-tourn"]
[EventRounds "7"]
[EventCountry "GER"]
[SourceTitle "playchess.com"]
[Source "ChessBase"]
[SourceQuality "1"]
[WhiteTeam "Schachzentrum Bemerode"]
[BlackTeam "SC Kreuzberg"]
[WhiteTeamCountry "GER"]
[TimeControl "40/5400+30:1800+30"]

1. d4 {[%emt 0:00:00]} d5 {[%emt 0:00:00]} 2. c4 {[%emt 0:00:00]} c6 {[%emt 0:00:00]} 3. Nf3 {[%emt 0:00:00]} Nf6 {[%emt 0:00:00]} 4. Nc3 {[%emt 0:00:00]} dxc4 {[%emt 0:00:00]} 5. a4 {[%emt 0:00:00]} Bf5 {[%emt 0:00:00]} 6. e3 {[%emt 0:00:06]} e6 {[%emt 0:00:02]} 7. Bxc4 {[%emt 0:00:05]} Bb4 {[%emt 0:00:06]} 8. O-O {[%emt 0:00:07]} O-O {[%emt 0:00:41]} 9. Qe2 {[%emt 0:00:15]} Bg6 {[%emt 0:00:07]} 10. Ne5 {[%emt 0:03:05]} Nbd7 {[%emt 0:09:08]} 11. Nxg6 {[%emt 0:02:32]} hxg6 {[%emt 0:00:12]} 12. Rd1 {[%emt 0:02:10]} Re8 {[%emt 0:01:55]} 13. Qc2 {[%emt 0:04:20]} Qa5 {[%emt 0:14:49]} 14. Bd2 {[%emt 0:10:24]} Qh5 {[%emt 0:11:29]} 15. e4 {[%emt 0:06:14]} Qh4 {[%emt 0:04:15]} 16. g3 {[%emt 0:09:36]} Qh5 {[%emt 0:10:40]} 17. Kg2 {[%emt 0:06:28]} e5 {[%emt 0:09:30]} 18. Qb3 {[%emt 0:01:30]} Rf8 {[%emt 0:13:26]} 19. Be2 {[%emt 0:01:21]} Ng4 {[%emt 0:03:42]} 20. h3 {[%emt 0:00:36]} exd4 {[%emt 0:01:43]} 21. Qxb4 {[%emt 0:02:06]} dxc3 {[%emt 0:02:19]} 22. Bxg4 {[%emt 0:00:11]} Qc5 {[%emt 0:02:43]} 23. Bxc3 {[%emt 0:00:22] normal} 0-1